bitfinex/quotes_ETHUSD_20240718
["timestamp","ask_amount","ask_price","bid_price","bid_amount"]
[1721334454255,0.03149694,3413.8,3413.0,3.54292678]
[1721334454482,0.03149694,3413.8,3413.1,2.54639867]
[1721334454695,0.59234543,3413.8,3413.2,1.01855947]
[1721334454883,0.59234543,3413.8,3413.0,3.54292678]
[1721334455078,0.59234543,3413.8,3413.1,2.5463304]
[1721334455254,0.59234543,3413.8,3413.2,1.01853216]
[1721334455584,0.59234543,3413.8,3412.9,0.61296678]
[1721334455749,0.59234543,3413.8,3413.0,2.54640527]
[1721334455947,0.59234543,3413.8,3413.1,2.54640527]
[1721334456276,0.59234543,3413.8,3412.9,3.54301678]
[1721334456473,0.59234543,3413.8,3412.8,5.93006]
[1721334456474,0.03149694,3413.8,3413.0,5.54642075]
[1721334456655,0.03149694,3413.8,3413.0,3.0]
[1721334456850,0.03149694,3413.8,3412.8,3.54306678]
[1721334456851,0.03149694,3413.8,3412.9,5.92999]
[1721334457057,0.03149694,3413.8,3413.0,2.54642473]
[1721334457287,0.03149694,3413.8,3412.9,5.92999]
[1721334457467,0.88525943,3413.8,3413.0,2.54639616]
[1721334457667,0.88525943,3413.8,3412.9,5.92999]
[1721334457965,0.88525943,3413.8,3413.0,2.54636473]
[1721334458160,0.88525943,3413.8,3413.1,1.01854589]
[1721334458393,3.81456943,3413.8,3412.9,3.0]
[1721334458686,2.92959,3413.5,3412.8,3.0]
[1721334458986,0.03017207,3413.4,3412.7,3.0]
[1721334459189,2.92959,3413.5,3412.7,3.0]
[1721334459491,0.67981307,3413.4,3412.7,3.0]
[1721334459863,2.4004,3413.3,3412.7,3.0]
[1721334460189,0.03006978,3413.2,3412.7,3.0]
[1721334460396,2.4004,3413.3,3412.7,3.0]
[1721334460984,0.03006392,3413.2,3412.7,3.0]
[1721334464499,2.4004,3413.3,3412.7,3.0]
[1721334464714,2.4004,3413.3,3412.7,5.93022]
[1721334464904,0.03009722,3413.2,3412.7,5.93022]
[1721334465286,2.3647,3413.5,3412.8,2.93012]
[1721334465700,0.0301402,3413.4,3412.8,2.93012]
[1721334467504,0.0301402,3413.4,3412.9,1.01860977]
[1721334467800,2.3647,3413.5,3412.8,2.93012]
[1721334468097,2.3647,3413.5,3412.9,1.01861296]
[1721334468265,2.3647,3413.5,3413.0,1.0186141]
[1721334468464,2.3647,3413.5,3412.8,0.61296678]
[1721334468666,2.3647,3413.5,3412.9,2.54654207]
[1721334468865,2.3647,3413.5,3413.0,1.01861683]
[1721334469100,2.3647,3413.5,3412.8,3.54310678]
[1721334469305,2.3647,3413.5,3412.9,2.5465215]
[1721334469479,2.3647,3413.5,3412.8,3.54310678]
[1721334469480,2.3647,3413.5,3413.0,2.5465215]
[1721334469808,2.3647,3413.5,3412.8,3.54310678]
[1721334469809,2.3647,3413.5,3412.8,0.61296678]
[1721334470105,2.3647,3413.5,3412.9,2.5465563]
[1721334470292,2.3647,3413.5,3413.0,1.01862252]
[1721334470492,2.3647,3413.5,3412.8,0.61296678]
[1721334470701,2.3647,3413.5,3412.9,2.5465669]
[1721334470904,2.3647,3413.5,3413.0,1.01862676]
[1721334471110,2.3647,3413.5,3412.8,0.61296678]
[1721334471296,2.3647,3413.5,3412.9,2.54656768]
[1721334471496,2.3647,3413.5,3413.0,1.01862707]
[1721334471681,2.3647,3413.5,3412.8,0.61296678]
[1721334471883,2.3647,3413.5,3412.9,2.54655146]
[1721334472083,2.3647,3413.5,3413.0,1.01862881]
[1721334472281,0.842,3413.4,3412.8,0.61296678]
[1721334472493,0.842,3413.4,3412.9,2.54659295]
[1721334472715,0.842,3413.4,3413.0,1.01863718]
[1721334472886,0.842,3413.4,3412.8,0.61296678]
[1721334473210,0.842,3413.4,3412.9,2.54658976]
[1721334473514,0.842,3413.4,3413.0,1.0186359]
[1721334473717,0.842,3413.4,3412.8,0.61296678]
[1721334473903,0.842,3413.4,3412.9,2.54658057]
[1721334474086,0.842,3413.4,3413.0,1.01863223]
[1721334474285,0.842,3413.4,3412.8,0.61296678]
[1721334474488,0.842,3413.4,3412.9,2.546565]
[1721334474796,0.842,3413.4,3412.8,0.61296678]
[1721334475000,0.842,3413.4,3412.9,2.54656283]
[1721334475198,0.842,3413.4,3413.0,2.54656283]
[1721334475395,0.842,3413.4,3412.8,0.61296678]
[1721334475709,0.842,3413.4,3412.9,1.62399298]
[1721334475909,0.842,3413.4,3413.0,1.62399298]
[1721334476075,0.842,3413.4,3412.8,3.54309678]
[1721334476275,0.842,3413.4,3412.9,1.01862476]
[1721334476475,0.842,3413.4,3413.0,1.01862476]
[1721334476686,0.842,3413.4,3412.8,3.54309678]
[1721334477011,0.842,3413.4,3412.9,1.01861972]
[1721334477308,0.842,3413.4,3413.0,1.01861972]
[1721334477485,0.842,3413.4,3412.8,3.54309678]
[1721334477787,0.842,3413.4,3412.9,1.01862489]
[1721334477982,0.842,3413.4,3412.8,3.54309678]
[1721334478182,0.842,3413.4,3412.9,1.01861964]
[1721334478387,0.842,3413.4,3413.0,1.01861964]
[1721334478607,0.842,3413.4,3412.8,3.54309678]
[1721334478913,0.842,3413.4,3412.9,1.01861532]
[1721334479069,0.842,3413.4,3413.0,1.01861532]
[1721334479275,1.455616,3413.4,3412.8,0.61296678]
[1721334479475,0.842,3413.4,3412.9,1.01861871]
[1721334479688,0.842,3413.4,3413.0,1.01861871]
[1721334479890,0.842,3413.4,3412.8,3.54310678]
[1721334480105,0.842,3413.4,3412.9,1.01861546]
[1721334480314,0.842,3413.4,3413.0,1.01861546]
[1721334480528,0.842,3413.4,3412.8,0.61296678]
[1721334480823,0.842,3413.4,3412.9,1.01861537]
[1721334480987,0.842,3413.4,3413.0,1.01861587]
[1721334481175,0.842,3413.4,3412.8,0.61296678]
[1721334481381,0.842,3413.4,3412.9,1.0186126]
[1721334481590,0.842,3413.4,3413.0,1.0186126]
[1721334481780,0.842,3413.4,3412.8,0.61296678]
[1721334482115,0.842,3413.4,3412.9,1.01861533]
[1721334482325,0.842,3413.4,3413.0,1.01861533]
[1721334482508,1.455617,3413.4,3413.1,1.01861198]
[1721334482678,1.455617,3413.4,3412.8,0.61296678]
[1721334482884,0.03005899,3413.3,3412.9,1.63157414]
[1721334483223,1.455617,3413.4,3413.0,1.01860736]
[1721334483378,0.6749787,3413.3,3413.1,1.01860736]
[1721334483578,0.02999686,3413.2,3412.9,0.61296678]
[1721334483914,0.842,3413.4,3413.0,1.01860772]
[1721334484215,0.842,3413.4,3413.1,1.01860772]
[1721334484380,0.03001733,3413.3,3412.9,0.61296678]
[1721334484582,1.455617,3413.4,3413.0,1.01860954]
[1721334484809,0.03011725,3413.3,3413.1,1.01861467]
[1721334484994,0.842,3413.2,3412.8,0.61296678]
[1721334485190,0.842,3413.2,3412.9,1.01864662]
[1721334485413,1.5170027,3413.2,3412.7,3.61296678]
[1721334485724,1.5170027,3413.2,3412.8,1.01866343]
[1721334485881,1.5170027,3413.2,3412.9,1.01866343]
[1721334486087,1.5170027,3413.2,3412.7,3.61296678]
[1721334486287,2.4293,3413.1,3412.8,2.54665738]
[1721334486526,2.4293,3413.1,3412.7,3.61296678]
[1721334486527,2.4293,3413.1,3412.7,3.0]
[1721334486742,2.4293,3413.1,3412.9,1.01867044]
[1721334486893,2.4293,3413.1,3412.8,1.01867044]
[1721334487096,2.4293,3413.1,3412.9,1.01867907]
[1721334487314,2.4293,3413.1,3412.7,3.0]
[1721334487628,2.4293,3413.1,3412.8,2.54669941]
[1721334487799,2.4293,3413.1,3412.9,1.01867976]
[1721334487997,0.02993085,3413.0,3412.7,3.0]
[1721334488206,0.02993085,3413.0,3412.8,2.54668871]
[1721334488386,0.02993085,3413.0,3412.9,1.01867548]
[1721334489333,1.49503394,3413.0,3412.7,3.0]
[1721334489488,1.49503394,3413.0,3412.8,1.01868941]
[1721334489804,1.49503394,3413.0,3412.6,0.61296678]
[1721334490127,1.49503394,3413.0,3412.4,0.91945017]
[1721334490128,0.842,3412.8,3412.4,3.61296678]
[1721334490302,0.62310309,3413.0,3412.5,2.54690955]
[1721334490504,1.46510309,3413.0,3412.4,3.61296678]
[1721334490707,1.46510309,3413.0,3412.5,2.5468312]
[1721334491037,1.46510309,3413.0,3412.4,3.61296678]
[1721334491219,1.46510309,3413.0,3412.5,2.54680108]
[1721334491392,0.03004222,3412.9,3412.6,1.01872043]
[1721334491591,0.03004222,3412.9,3412.4,3.61296678]
[1721334491791,0.03004222,3412.9,3412.5,2.54680295]
[1721334492030,0.03004222,3412.9,3412.6,1.01872118]
[1721334492212,0.03004222,3412.9,3412.4,3.61296678]
[1721334492403,0.842,3413.0,3412.5,2.54680263]
[1721334492613,0.842,3413.0,3412.6,1.01872105]
[1721334492900,0.842,3413.0,3412.4,3.61296678]
[1721334493126,0.842,3413.0,3412.5,2.54680103]
[1721334493336,0.842,3413.0,3412.4,3.61296678]
[1721334493535,0.842,3413.0,3412.5,2.5468024]
[1721334493823,0.842,3413.0,3412.6,1.01872087]
[1721334494029,2.4996,3413.4,3412.6,2.3384]
[1721334494190,2.4996,3413.4,3412.7,3.15973673]
[1721334494191,0.842,3413.3,3412.7,3.15973673]
[1721334494392,0.842,3413.3,3412.8,3.15973673]
[1721334494729,0.842,3413.3,3412.9,2.54676995]
[1721334494905,1.469119,3413.3,3413.0,1.01870908]
[1721334495134,1.469119,3413.3,3412.8,0.61296678]
[1721334495293,1.469119,3413.3,3412.9,2.54648446]
[1721334495489,1.469119,3413.3,3413.0,1.01859378]
[1721334495705,1.469119,3413.3,3412.8,0.61296678]
[1721334496029,1.469119,3413.3,3412.9,2.54649245]
[1721334496186,1.469119,3413.3,3413.0,1.01859698]
[1721334496390,1.469119,3413.3,3412.8,0.61296678]
[1721334496590,1.469119,3413.3,3412.9,2.54649627]
[1721334496790,1.469119,3413.3,3413.0,1.01859851]
[1721334497028,1.469119,3413.3,3412.8,0.61296678]
[1721334497238,1.469119,3413.3,3412.9,2.54649643]
[1721334497430,1.469119,3413.3,3413.0,1.01859857]
[1721334497694,1.469119,3413.3,3412.8,0.61296678]
[1721334498000,1.469119,3413.3,3412.9,2.54649635]
[1721334498222,1.469119,3413.3,3413.0,1.01859854]
[1721334498526,0.842,3413.1,3412.8,0.61296678]
[1721334498731,0.842,3413.1,3412.9,2.54649663]
[1721334498928,0.842,3413.1,3413.0,1.01859865]
[1721334499690,0.842,3413.1,3412.8,0.61296678]
[1721334499941,0.842,3413.1,3412.9,2.54649751]
[1721334500098,0.842,3413.1,3412.8,0.61296678]
[1721334500425,2.4996,3413.4,3412.9,2.54649743]
[1721334500633,0.842,3413.3,3413.0,1.01859893]
[1721334500932,0.842,3413.3,3412.8,0.61296678]
[1721334501104,0.842,3413.3,3412.9,2.54647435]
[1721334501301,0.842,3413.3,3413.0,2.54647435]
[1721334501500,0.842,3413.3,3412.8,3.54306678]
[1721334501744,0.842,3413.3,3412.9,2.54647578]
[1721334501924,0.842,3413.3,3413.0,2.54647578]
[1721334502116,0.842,3413.3,3412.8,3.54306678]
[1721334502433,2.4339,3413.6,3412.9,2.54647577]
[1721334502636,0.842,3413.5,3413.0,2.54647577]
[1721334502814,0.842,3413.5,3413.1,1.01859031]
[1721334503004,0.842,3413.5,3412.9,3.54300678]
[1721334503202,0.842,3413.5,3413.0,2.54643938]
[1721334503432,0.842,3413.5,3413.1,2.54643938]
[1721334503616,0.842,3413.5,3412.9,3.54300678]
[1721334503818,0.842,3413.5,3413.0,2.5464396]
[1721334504105,0.842,3413.5,3413.1,2.5464396]
[1721334504333,0.842,3413.5,3412.9,3.54300678]
[1721334504506,0.842,3413.5,3413.0,2.5464397]
[1721334504716,0.842,3413.5,3413.1,2.5464397]
[1721334504917,2.4339,3413.6,3413.0,2.92995]
[1721334505097,0.842,3413.5,3413.1,2.54642243]
[1721334505303,0.842,3413.5,3413.2,1.01856901]
[1721334505503,0.842,3413.5,3412.9,0.61296678]
[1721334505740,0.842,3413.5,3413.0,2.54643787]
[1721334505941,0.842,3413.5,3413.1,2.54643787]
[1721334506124,0.842,3413.5,3412.9,6.47294678]
[1721334506317,0.842,3413.5,3413.0,5.47639005]
[1721334506638,0.842,3413.5,3413.1,2.54643005]
[1721334506841,0.842,3413.5,3413.0,2.92996]
[1721334507044,0.842,3413.5,3413.1,2.54642823]
[1721334507204,0.842,3413.5,3413.0,2.92996]
[1721334507404,0.842,3413.5,3413.1,2.54643068]
[1721334507604,0.842,3413.5,3413.2,1.01857227]
[1721334507818,2.4339,3413.6,3413.0,3.54292678]
[1721334508015,0.842,3413.4,3413.1,2.546399]
[1721334508225,0.842,3413.5,3413.2,1.0185596]
[1721334508537,0.842,3413.5,3413.1,2.92988]
[1721334508742,0.842,3413.5,3413.2,1.01854831]
[1721334509045,0.842,3413.5,3413.1,2.92988]
[1721334509547,0.842,3413.5,3413.2,1.0185522]
[1721334509767,0.842,3413.5,3412.9,3.54294678]
[1721334509919,0.842,3413.5,3413.0,2.5464231]
[1721334510119,0.842,3413.5,3413.1,2.5464231]
[1721334510322,0.842,3413.5,3413.2,1.01854878]
[1721334510508,0.842,3413.5,3413.0,0.61296678]
[1721334510838,0.842,3413.5,3413.1,2.54637288]
[1721334511055,0.842,3413.5,3413.2,2.54635436]
[1721334511244,0.842,3413.5,3413.0,3.54292678]
[1721334511432,0.842,3413.5,3413.1,2.54632848]
[1721334511636,0.842,3413.5,3413.2,1.01853139]
[1721334511824,0.842,3413.5,3413.0,3.54292678]
[1721334512162,0.842,3413.5,3413.1,2.54640861]
[1721334512360,0.842,3413.5,3413.2,1.01856344]
[1721334512563,0.842,3413.5,3413.0,3.54292678]
[1721334512724,0.842,3413.5,3413.1,2.54640862]
[1721334512927,0.842,3413.5,3413.2,1.01856345]
[1721334513149,0.842,3413.5,3413.0,2.92996]
[1721334513487,0.842,3413.5,3413.1,2.54641165]
[1721334513781,0.842,3413.5,3413.0,2.92996]
[1721334513782,0.842,3413.5,3413.2,1.01856466]
[1721334513926,0.842,3413.5,3413.0,2.92996]
[1721334514128,0.842,3413.5,3413.1,2.54641173]
[1721334514367,0.842,3413.5,3413.2,1.01856469]
[1721334514522,0.842,3413.5,3413.0,2.92996]
[1721334514860,0.842,3413.5,3413.1,2.5464113]
[1721334515036,0.842,3413.5,3413.2,1.01856452]
[1721334515231,0.842,3413.5,3413.0,2.92996]
[1721334515437,0.842,3413.5,3413.1,2.54640925]
[1721334515636,0.842,3413.5,3413.0,2.92996]
[1721334515955,0.842,3413.5,3413.1,2.54641353]
[1721334516126,0.842,3413.5,3413.2,2.54641353]
[1721334516329,0.842,3413.5,3413.1,3.54284678]
[1721334516543,0.842,3413.5,3413.2,2.54622225]
[1721334516761,0.842,3413.5,3413.3,1.0184889]
[1721334516938,0.842,3413.5,3413.1,3.54284678]
[1721334517141,0.842,3413.5,3413.2,2.54621752]
[1721334517466,0.842,3413.5,3413.3,1.01848701]
[1721334517757,0.842,3413.5,3413.1,3.54284678]
[1721334518062,0.842,3413.5,3413.2,2.5461947]
[1721334518359,0.842,3413.5,3413.3,1.01847788]
[1721334518563,0.842,3413.5,3413.1,2.92988]
[1721334518767,0.842,3413.5,3413.2,2.54627815]
[1721334519062,0.842,3413.5,3413.3,1.01848056]
[1721334519269,0.842,3413.5,3413.1,6.47268678]
[1721334519426,0.842,3413.5,3413.2,2.54620048]
[1721334519628,0.842,3413.5,3413.3,1.01848019]
[1721334519854,0.842,3413.5,3413.1,3.54280678]
[1721334520040,0.842,3413.5,3413.2,2.5461808]
[1721334520235,0.842,3413.5,3413.3,1.01847232]
[1721334520427,0.842,3413.5,3413.1,3.54280678]
[1721334520628,0.842,3413.5,3413.2,2.54618553]
[1721334520950,0.842,3413.5,3413.3,1.01847421]
[1721334521125,0.842,3413.5,3413.1,3.54280678]
[1721334521326,0.842,3413.5,3413.2,2.54618473]
[1721334521665,0.842,3413.5,3413.3,1.01847389]
[1721334521846,0.842,3413.5,3413.1,0.61296678]
[1721334522461,0.842,3413.5,3413.2,2.54618191]
[1721334522763,0.842,3413.5,3413.3,1.01847276]
[1721334522930,0.842,3413.5,3413.1,0.61296678]
[1721334523129,0.842,3413.5,3413.2,2.54618116]
[1721334523360,0.842,3413.5,3413.3,1.01847246]
[1721334523557,0.842,3413.5,3413.1,0.61296678]
[1721334523770,0.842,3413.5,3413.2,2.54618087]
[1721334524065,0.842,3413.5,3413.0,3.54288678]
[1721334524252,0.842,3413.5,3413.1,2.54626565]
[1721334524458,0.842,3413.5,3413.2,2.54626565]
[1721334524777,0.842,3413.5,3413.0,3.54288678]
[1721334524962,0.842,3413.5,3413.1,2.54625385]
[1721334525166,0.842,3413.5,3413.2,2.54625385]
[1721334525332,0.842,3413.5,3413.1,2.92986]
[1721334525532,0.842,3413.5,3413.2,2.54619373]
[1721334525754,0.842,3413.5,3413.3,1.01847749]
[1721334526070,0.842,3413.5,3413.1,3.54282678]
[1721334526367,0.842,3413.5,3413.2,2.54619333]
[1721334526567,0.842,3413.5,3413.1,2.92986]
[1721334526733,0.842,3413.5,3413.2,2.54621917]
[1721334526933,0.842,3413.5,3413.1,2.92986]
[1721334527168,0.842,3413.5,3413.2,2.54621613]
[1721334527340,0.842,3413.5,3413.1,2.92986]
[1721334527531,0.842,3413.5,3413.2,2.54621303]
[1721334527732,0.842,3413.5,3413.1,2.92986]
[1721334527971,0.842,3413.5,3413.2,2.5462163]
[1721334528287,0.842,3413.5,3413.1,2.92986]
[1721334528447,0.842,3413.5,3413.2,2.54620015]
[1721334528632,0.842,3413.5,3413.1,2.92986]
[1721334529143,0.842,3413.5,3413.2,2.54620166]
[1721334529482,0.842,3413.5,3413.1,2.92986]
[1721334529652,0.842,3413.5,3413.2,2.5462015]
[1721334529852,0.842,3413.5,3413.1,2.92986]
[1721334530163,0.842,3413.5,3413.2,2.5461971]
[1721334530474,0.842,3413.5,3413.1,2.92986]
[1721334530644,0.842,3413.5,3413.2,2.5462012]
[1721334530846,0.842,3413.5,3413.0,0.61459959]
[1721334531031,0.842,3413.3,3413.1,2.54621611]
[1721334531237,0.842,3413.3,3412.9,3.54456959]
[1721334531438,0.842,3413.3,3413.0,2.54634856]
[1721334531647,0.842,3413.3,3413.1,1.01853942]
[1721334531835,0.842,3413.3,3412.9,3.54456959]
[1721334532031,0.842,3413.3,3413.0,2.54634688]
[1721334532287,0.842,3413.3,3413.1,1.01853875]
[1721334532476,0.842,3413.3,3413.2,1.01849327]
[1721334534475,3.0923,3413.3,3413.2,1.01849327]
[1721334534771,3.40153,3413.3,3412.7,3.0]
[1721334535074,0.842,3413.2,3412.8,1.0186563]
[1721334535281,0.842,3413.2,3412.7,3.0]
[1721334535445,0.842,3413.2,3412.8,1.01865499]
[1721334535644,0.842,3413.2,3412.7,3.0]
[1721334535844,0.842,3413.2,3412.8,2.54654785]
[1721334536087,0.842,3413.2,3412.7,3.0]
[1721334536275,0.842,3413.2,3412.8,2.54654751]
[1721334536479,0.842,3413.2,3412.9,1.018619]
[1721334536680,0.842,3413.2,3412.7,0.61459959]
[1721334536681,2.2503,3412.9,3412.7,0.61459959]
[1721334536856,5.18053,3412.7,3412.6,7.37]
[1721334537050,2.93032,3412.6,3412.0,20.31459959]
[1721334537286,2.93032,3412.6,3411.8,0.92189939]
[1721334537287,0.842,3412.2,3411.8,0.61459959]
[1721334537584,0.842,3412.2,3411.9,2.54722475]
[1721334537745,0.842,3412.2,3412.0,1.0188899]
[1721334537952,0.842,3412.2,3411.8,0.61459959]
[1721334538150,0.842,3412.2,3411.9,2.54718275]
[1721334538345,0.842,3412.2,3412.0,1.0188731]
[1721334538597,0.842,3412.4,3411.8,0.61459959]
[1721334538987,0.842,3412.4,3411.9,3.16168827]
[1721334539168,0.842,3412.4,3412.0,2.54708341]
[1721334539366,0.842,3412.4,3411.9,0.61459959]
[1721334539367,0.842,3412.4,3412.1,1.01883336]
[1721334539562,0.842,3412.4,3411.9,0.61459959]
[1721334539767,0.842,3412.4,3412.0,2.54703238]
[1721334539968,0.842,3412.4,3412.1,1.01881295]
[1721334540169,0.842,3412.4,3411.9,0.61459959]
[1721334540372,0.842,3412.4,3412.0,2.54697333]
[1721334540570,0.842,3412.4,3412.1,1.01878933]
[1721334540770,0.842,3412.4,3411.9,0.61459959]
[1721334540990,0.842,3412.4,3412.0,2.54704203]
[1721334541196,0.842,3412.4,3412.1,1.01881681]
[1721334541515,0.842,3412.4,3411.8,3.61459959]
[1721334541809,0.842,3412.4,3411.9,2.5470406]
[1721334541973,0.842,3412.4,3412.0,5.5470406]
[1721334542328,0.842,3412.4,3412.0,3.0]
[1721334542507,0.842,3412.4,3411.8,3.61459959]
[1721334542712,0.842,3412.4,3411.9,2.54704846]
[1721334542869,0.842,3412.4,3412.0,4.01881938]
[1721334543072,0.842,3412.4,3411.8,3.61459959]
[1721334543273,0.842,3412.4,3411.9,2.54705065]
[1721334543584,0.842,3412.4,3412.0,4.01882026]
[1721334543910,0.842,3412.4,3411.8,3.61459959]
[1721334544112,0.842,3412.4,3411.9,2.5470516]
[1721334544415,0.842,3412.4,3412.0,3.0]
[1721334544585,0.842,3412.4,3411.9,3.0]
[1721334544908,0.842,3412.4,3411.7,10.91564959]
[1721334544909,0.842,3412.4,3412.0,1.01881332]
[1721334545068,0.842,3412.4,3411.8,3.61459959]
[1721334545271,0.842,3412.4,3411.9,2.54703343]
[1721334545507,0.842,3412.4,3412.0,3.0]
[1721334545710,0.842,3412.4,3411.8,3.0]
[1721334546008,0.842,3412.4,3411.9,2.54703343]
[1721334546216,0.842,3412.4,3412.0,3.0]
[1721334546378,0.842,3412.4,3411.8,3.0]
[1721334546712,0.842,3412.4,3411.9,2.54703317]
[1721334546911,0.842,3412.4,3412.0,3.0]
[1721334547210,0.842,3412.4,3411.9,3.0]
[1721334547524,0.842,3412.4,3411.8,3.0]
[1721334547677,0.842,3412.4,3411.9,1.01881361]
[1721334547879,0.842,3412.4,3411.8,3.0]
[1721334548203,0.842,3412.4,3411.9,1.01881418]
[1721334548515,0.842,3412.4,3411.8,3.0]
[1721334548688,0.842,3412.4,3411.9,1.01881359]
[1721334549012,0.842,3412.2,3411.8,3.0]
[1721334549681,0.842,3412.0,3411.8,3.0]
[1721334549913,2.4975,3411.9,3411.4,7.37]
[1721334550116,0.842,3411.8,3411.2,3.43845243]
[1721334550914,0.842,3411.4,3411.2,0.50694243]
[1721334551414,3.3395,3411.4,3411.2,0.50694243]
[1721334554110,3.966568,3411.4,3411.2,0.50694243]
[1721334555299,2.93143,3411.3,3411.2,0.50694243]
[1721334555495,0.0285892,3411.3,3410.8,5.93186]
[1721334555714,0.0285892,3411.3,3410.9,2.93177]
[1721334555913,0.842,3411.6,3410.8,3.0]
[1721334556224,0.02825004,3411.2,3410.9,35.0]
[1721334556381,0.842,3411.6,3410.9,35.0]
[1721334556585,2.93111,3411.7,3410.8,5.93184]
[1721334556586,0.842,3411.4,3410.8,5.93184]
[1721334557019,0.842,3411.4,3410.8,40.93184]
[1721334557211,0.842,3411.6,3410.8,5.93184]
[1721334558715,0.842,3411.4,3410.8,5.93184]
[1721334563354,0.842,3411.7,3410.9,2.354]
[1721334563702,0.02885174,3411.6,3410.9,2.354]
[1721334564416,0.02885174,3411.6,3411.0,2.93163]
[1721334567235,0.842,3411.5,3410.9,2.354]
[1721334567540,0.842,3411.5,3410.8,8.86358]
[1721334567739,0.02866071,3411.4,3410.8,5.93179]
[1721334568241,0.02866071,3411.4,3410.9,2.93173]
[1721334574042,0.02866071,3411.4,3411.0,2.93168]
[1721334574860,0.02866071,3411.4,3411.3,5.86286]
[1721334575043,1e-08,3411.4,3411.3,8.86286]
[1721334575244,3.1231,3412.0,3411.4,2.9313]
[1721334575542,0.02801917,3411.9,3411.4,2.9313]
[1721334575744,0.02801917,3411.9,3411.5,2.93124]
[1721334576862,0.02801917,3411.9,3411.6,0.05861733]
[1721334577019,0.02801917,3411.9,3411.7,2.93104]
[1721334577225,0.842,3412.2,3411.7,2.93104]
[1721334577523,0.02848728,3412.1,3411.7,2.93104]
[1721334577923,0.842,3412.2,3411.7,2.93104]
[1721334578124,0.842,3412.2,3411.7,2.98965679]
[1721334578351,0.842,3412.2,3411.7,5.86208]
[1721334578352,0.02784394,3412.1,3411.7,5.86208]
[1721334578729,0.842,3412.2,3411.7,5.86206]
[1721334579138,0.02781061,3412.1,3411.7,5.86206]
[1721334579354,0.02781061,3412.1,3411.7,2.93102]
[1721334579658,0.842,3412.2,3411.7,2.93102]
[1721334580048,0.02781061,3412.1,3411.7,2.93102]
[1721334580429,0.842,3412.2,3411.7,2.93102]
[1721334582158,0.02778868,3412.1,3411.7,2.93102]
[1721334582541,0.842,3412.2,3411.7,2.93102]
[1721334583062,0.02775461,3412.1,3411.7,2.93102]
[1721334583260,0.842,3412.2,3411.7,2.93102]
[1721334583560,0.02772128,3412.1,3411.7,2.93102]
[1721334583931,0.842,3412.2,3411.7,2.93102]
[1721334584463,0.02769601,3412.1,3411.7,2.93102]
[1721334584763,0.842,3412.2,3411.7,2.93102]
[1721334585162,0.02769601,3412.1,3411.7,2.93102]
[1721334585667,0.842,3412.2,3411.7,2.93102]
[1721334586030,0.02766488,3412.1,3411.7,2.93102]
[1721334586340,0.842,3412.2,3411.7,2.93102]
[1721334586550,0.02756937,3412.0,3411.7,2.93102]
[1721334586750,0.842,3412.2,3411.7,2.93102]
[1721334586751,0.02763154,3412.1,3411.7,2.93102]
[1721334587062,0.842,3412.2,3411.7,2.93102]
[1721334587430,0.02796481,3412.1,3411.7,2.93102]
[1721334587861,0.842,3412.2,3411.7,2.93102]
[1721334588243,0.02774783,3412.1,3411.7,2.93102]
[1721334588750,0.842,3412.0,3411.6,3.0]
[1721334589485,0.02759824,3411.9,3411.6,3.0]
[1721334591734,0.02759824,3411.9,3411.8,2.931]
[1721334591936,0.842,3412.2,3411.8,2.931]
[1721334592394,0.02761157,3412.1,3411.8,2.931]
[1721334594445,0.02761157,3412.1,3412.0,5.86166]
[1721334594667,2.3072,3412.6,3412.2,2.93064]
[1721334594851,2.3072,3412.6,3412.0,2.93075]
[1721334595060,2.3072,3412.6,3412.0,5.86153]
[1721334595263,2.3072,3412.6,3412.1,3.94947574]
[1721334595466,2.3072,3412.6,3412.1,2.93073]
[1721334596339,2.3072,3412.6,3412.1,5.8614]
[1721334596541,2.3072,3412.6,3412.1,2.93067]
[1721334596850,0.02810273,3412.5,3412.1,2.93067]
[1721334597877,0.02810273,3412.5,3411.9,2.93087]
[1721334598077,0.02810273,3412.5,3412.1,2.93068]
[1721334598290,0.02810273,3412.5,3412.2,2.93065]
[1721334598576,0.02795345,3412.4,3412.2,2.93065]
[1721334598804,2.3072,3412.6,3412.2,2.93065]
[1721334599812,2.3072,3412.6,3412.3,2.93056]
[1721334601302,2.3072,3412.6,3412.4,2.93047]
[1721334601600,0.842,3412.7,3412.3,2.93056]
[1721334601795,0.842,3412.7,3412.1,2.93067]
[1721334602012,0.842,3412.7,3411.8,10.35559959]
[1721334602013,0.842,3412.7,3412.3,2.93057]
[1721334602194,0.842,3412.7,3412.3,5.86108]
[1721334602407,0.842,3412.7,3412.3,2.93051]
[1721334602600,0.842,3412.7,3412.1,2.93069]
[1721334602915,0.842,3412.7,3412.2,2.9306]
[1721334603090,0.842,3412.7,3412.3,2.93057]
[1721334603288,2.2704,3412.8,3412.3,2.93057]
[1721334603498,0.842,3413.0,3412.6,2.9303]
[1721334603871,0.842,3413.0,3412.4,3.0]
[1721334603872,0.842,3413.0,3412.4,5.93043]
[1721334604614,0.842,3412.8,3412.4,5.93043]
[1721334605704,2.4967,3412.7,3412.4,5.93043]
[1721334605905,0.842,3412.6,3412.4,3.0]
[1721334606208,0.842,3412.6,3412.2,3.0]
[1721334606413,2.4967,3412.7,3411.9,3.54547959]
[1721334606414,0.842,3412.3,3412.0,5.93076]
[1721334606622,0.842,3412.3,3412.1,2.93073]
[1721334606801,3.3387,3412.7,3412.2,5.93063]
[1721334607445,0.842,3412.5,3412.2,5.93063]